[Event "*** Titled Tuesday Blitz"]
[Site "Chess.com"]
[Date "2019.02.05"]
[Round "1"]
[White "Sosat98"]
[Black "lolo9292"]
[Result "1-0"]
[WhiteElo "2580"]
[BlackElo "2221"]
[TimeControl "180+2"]
[EndTime "13:08:33 PST"]
[Termination "Sosat98 won on time"]

1. e4 {[%clk 0:03:01.9]} 1... e5 {[%clk 0:02:59.9]} 2. d4 {[%clk 0:03:03.6]}
2... exd4 {[%clk 0:03:00.4]} 3. Nf3 {[%clk 0:03:05.3]} 3... d6 {[%clk
0:03:01.9]} 4. Nxd4 {[%clk 0:03:05.8]} 4... Nf6 {[%clk 0:03:03.4]} 5. Nc3 {[%clk
0:03:07.4]} 5... Be7 {[%clk 0:02:56.9]} 6. h3 {[%clk 0:03:07]} 6... O-O {[%clk
0:02:58.8]} 7. g4 {[%clk 0:03:07.6]} 7... d5 {[%clk 0:02:58.4]} 8. e5 {[%clk
0:03:08.2]} 8... Nfd7 {[%clk 0:02:59.6]} 9. Nf3 {[%clk 0:03:07.3]} 9... c6
{[%clk 0:02:57.6]} 10. Bg2 {[%clk 0:03:07.2]} 10... f6 {[%clk 0:02:57.9]} 11.
exf6 {[%clk 0:03:04.9]} 11... Nxf6 {[%clk 0:02:59.8]} 12. O-O {[%clk 0:03:05.5]}
12... Bd6 {[%clk 0:03:00.7]} 13. Nd4 {[%clk 0:02:58.3]} 13... Bc7 {[%clk
0:02:37.8]} 14. g5 {[%clk 0:02:56.3]} 14... Qd6 {[%clk 0:02:11]} 15. f4 {[%clk
0:02:57.4]} 15... Ne8 {[%clk 0:02:10.5]} 16. Be3 {[%clk 0:02:52.8]} 16... Nd7
{[%clk 0:02:03.2]} 17. Nxd5 {[%clk 0:02:40.1]} 17... cxd5 {[%clk 0:01:50.9]} 18.
Nb5 {[%clk 0:02:39.9]} 18... Qe7 {[%clk 0:01:47.4]} 19. Qxd5+ {[%clk 0:02:26]}
19... Kh8 {[%clk 0:01:45.7]} 20. Rae1 {[%clk 0:02:25.9]} 20... Nb6 {[%clk
0:01:43.9]} 21. Bc5 {[%clk 0:02:24.3]} 21... Nxd5 {[%clk 0:01:44]} 22. Bxe7
{[%clk 0:02:22.9]} 22... Nxe7 {[%clk 0:01:45.4]} 23. Rxe7 {[%clk 0:02:24]} 23...
Bb6+ {[%clk 0:01:46.1]} 24. Kh1 {[%clk 0:02:23.8]} 24... a6 {[%clk 0:01:34.7]}
25. Rfe1 {[%clk 0:02:07.9]} 25... Bxh3 {[%clk 0:01:29.2]} 26. Bxh3 {[%clk
0:01:52.5]} 26... axb5 {[%clk 0:01:30.1]} 27. Rxb7 {[%clk 0:01:53.9]} 27... Ba5
{[%clk 0:01:31.3]} 28. Ree7 {[%clk 0:01:50.3]} 28... Rxf4 {[%clk 0:01:23.6]} 29.
Rxb5 {[%clk 0:01:44.5]} 29... Nd6 {[%clk 0:01:22.4]} 30. Rd5 {[%clk 0:01:41.6]}
30... Ne4 {[%clk 0:01:21.8]} 31. Rxa5 {[%clk 0:01:39.5]} 31... Raf8 {[%clk
0:01:14.3]} 32. Ra3 {[%clk 0:01:26.6]} 32... Rh4 {[%clk 0:01:12.8]} 33. Kg1
{[%clk 0:01:21.2]} 33... Nxg5 {[%clk 0:01:14.1]} 34. Bg2 {[%clk 0:01:19.6]}
34... h5 {[%clk 0:01:12.9]} 35. Rg3 {[%clk 0:01:15.9]} 35... Rf5 {[%clk
0:01:12.8]} 36. c3 {[%clk 0:00:57.3]} 36... Kh7 {[%clk 0:01:11.2]} 37. b4 {[%clk
0:00:56.3]} 37... Kh6 {[%clk 0:01:12.6]} 38. a4 {[%clk 0:00:56.1]} 38... g6
{[%clk 0:01:04.2]} 39. a5 {[%clk 0:00:56.4]} 39... Rc4 {[%clk 0:01:04.4]} 40. a6
{[%clk 0:00:56.4]} 40... h4 {[%clk 0:01:04.1]} 41. a7 {[%clk 0:00:55]} 41... Rf8
{[%clk 0:00:59.3]} 42. Rge3 {[%clk 0:00:51.1]} 42... Rcc8 {[%clk 0:00:51.9]} 43.
c4 {[%clk 0:00:44]} 43... Rfe8 {[%clk 0:00:46.9]} 44. Rxe8 {[%clk 0:00:44.5]}
1-0

[Event "*** Titled Tuesday Blitz"]
[Site "Chess.com"]
[Date "2019.02.05"]
[Round "1"]
[White "Kurai"]
[Black "ecwinslow"]
[Result "1-0"]
[WhiteElo "2490"]
[BlackElo "2009"]
[TimeControl "180+2"]
[EndTime "13:08:37 PST"]
[Termination "Kurai won by resignation"]

1. e4 {[%clk 0:02:57.6]} 1... d6 {[%clk 0:03:00.3]} 2. d4 {[%clk 0:02:52.4]}
2... Nf6 {[%clk 0:03:00.8]} 3. Nc3 {[%clk 0:02:53.5]} 3... g6 {[%clk 0:03:02]}
4. Nf3 {[%clk 0:02:39]} 4... Bg7 {[%clk 0:03:00.9]} 5. Be2 {[%clk 0:02:39.5]}
5... O-O {[%clk 0:03:00.7]} 6. O-O {[%clk 0:02:41]} 6... c6 {[%clk 0:03:00.8]}
7. a4 {[%clk 0:02:41.9]} 7... a5 {[%clk 0:02:56.5]} 8. Re1 {[%clk 0:02:42.9]}
8... Na6 {[%clk 0:02:52.5]} 9. h3 {[%clk 0:02:43.3]} 9... Qc7 {[%clk 0:02:51.1]}
10. Bf1 {[%clk 0:02:37.1]} 10... e5 {[%clk 0:02:49.7]} 11. Be3 {[%clk
0:02:36.3]} 11... Rd8 {[%clk 0:02:37.3]} 12. Qd2 {[%clk 0:02:34.5]} 12... Nb4
{[%clk 0:02:29.4]} 13. Bh6 {[%clk 0:02:28]} 13... Bh8 {[%clk 0:01:48.7]} 14.
Rad1 {[%clk 0:02:27.4]} 14... Re8 {[%clk 0:01:49]} 15. d5 {[%clk 0:02:19.5]}
15... cxd5 {[%clk 0:01:44.4]} 16. exd5 {[%clk 0:02:20]} 16... Bf5 {[%clk
0:01:39.9]} 17. Nb5 {[%clk 0:02:19.7]} 17... Qd8 {[%clk 0:01:23.6]} 18. c3
{[%clk 0:02:00.5]} 18... Na6 {[%clk 0:01:07.7]} 19. Qc1 {[%clk 0:01:47.8]} 19...
Nc5 {[%clk 0:01:01.4]} 20. Qa1 {[%clk 0:01:44.2]} 20... Bc2 {[%clk 0:00:55.5]}
21. Nd2 {[%clk 0:00:59.4]} 21... Bxd1 {[%clk 0:00:50.9]} 22. Rxd1 {[%clk
0:01:00.4]} 22... e4 {[%clk 0:00:51.1]} 23. Nc4 {[%clk 0:01:00.4]} 23... Ra6
{[%clk 0:00:50.2]} 24. Bf4 {[%clk 0:00:55.7]} 24... e3 {[%clk 0:00:38.2]} 25.
Bxe3 {[%clk 0:00:41.9]} 25... Nfe4 {[%clk 0:00:30.1]} 26. Qa3 {[%clk 0:00:42.5]}
26... f5 {[%clk 0:00:24.3]} 27. Ncxd6 {[%clk 0:00:40.8]} 27... Rxd6 {[%clk
0:00:21.3]} 28. Bxc5 {[%clk 0:00:39.8]} 28... Nxc5 {[%clk 0:00:20.1]} 29. Qxc5
{[%clk 0:00:41.6]} 29... Rd7 {[%clk 0:00:20.9]} 30. d6 {[%clk 0:00:41.3]} 30...
Re5 {[%clk 0:00:20.9]} 31. Bc4+ {[%clk 0:00:29]} 31... Kf8 {[%clk 0:00:19.7]}
32. Qa7 {[%clk 0:00:29]} 32... Rxb5 {[%clk 0:00:19.7]} 33. Bxb5 {[%clk
0:00:22.1]} 33... Rxd6 {[%clk 0:00:20.9]} 34. Qc5 {[%clk 0:00:23.2]} 34... Ke7
{[%clk 0:00:20.2]} 35. Re1+ {[%clk 0:00:24.4]} 35... Kf7 {[%clk 0:00:18.8]} 36.
Re8 {[%clk 0:00:19.1]} 36... Qf6 {[%clk 0:00:15.8]} 37. Qc4+ {[%clk 0:00:18.1]}
37... Kg7 {[%clk 0:00:15.7]} 38. Qg8+ {[%clk 0:00:17.9]} 38... Kh6 {[%clk
0:00:16.6]} 39. Qxh8 {[%clk 0:00:19.5]} 39... Rd1+ {[%clk 0:00:17.3]} 40. Kh2
{[%clk 0:00:16.9]} 40... Qd6+ {[%clk 0:00:17]} 41. Qe5 {[%clk 0:00:17.8]} 41...
Qb6 {[%clk 0:00:13]} 42. Qe3+ {[%clk 0:00:18.4]} 42... Kg7 {[%clk 0:00:14]} 43.
Qxb6 {[%clk 0:00:19.3]} 1-0

[Event "*** Titled Tuesday Blitz"]
[Site "Chess.com"]
[Date "2019.02.05"]
[Round "1"]
[White "ZeroRealtorFade"]
[Black "Witik"]
[Result "0-1"]
[WhiteElo "2253"]
[BlackElo "2615"]
[TimeControl "180+2"]
[EndTime "13:08:47 PST"]
[Termination "Witik won by resignation"]

1. d4 {[%clk 0:03:00.5]} 1... d5 {[%clk 0:02:59.2]} 2. Bf4 {[%clk 0:03:01.2]}
2... Nf6 {[%clk 0:02:55.5]} 3. e3 {[%clk 0:03:02.1]} 3... c5 {[%clk 0:02:56.5]}
4. c3 {[%clk 0:03:03.1]} 4... Nc6 {[%clk 0:02:56.9]} 5. Nd2 {[%clk 0:03:04.1]}
5... Qb6 {[%clk 0:02:45.7]} 6. Qb3 {[%clk 0:02:49.6]} 6... c4 {[%clk 0:02:46.3]}
7. Qxb6 {[%clk 0:02:48.1]} 7... axb6 {[%clk 0:02:46.7]} 8. e4 {[%clk 0:02:46.6]}
8... b5 {[%clk 0:02:40.9]} 9. exd5 {[%clk 0:02:37.8]} 9... Nxd5 {[%clk
0:02:41.3]} 10. Be3 {[%clk 0:02:17.7]} 10... e5 {[%clk 0:01:42.2]} 11. Ngf3
{[%clk 0:02:10.2]} 11... exd4 {[%clk 0:01:38.4]} 12. Bxd4 {[%clk 0:01:54.2]}
12... Bf5 {[%clk 0:01:14.2]} 13. Be2 {[%clk 0:00:48.3]} 13... Nf4 {[%clk
0:01:14.5]} 14. g3 {[%clk 0:00:38]} 14... Nxe2 {[%clk 0:01:06.7]} 15. Kxe2
{[%clk 0:00:39.8]} 15... f6 {[%clk 0:01:04.9]} 16. Rhe1 {[%clk 0:00:36.6]} 16...
Bd3+ {[%clk 0:01:00.4]} 17. Kd1+ {[%clk 0:00:37.2]} 17... Kf7 {[%clk 0:01:02.3]}
18. Re3 {[%clk 0:00:33.6]} 18... g6 {[%clk 0:00:41.9]} 19. Ne1 {[%clk
0:00:34.3]} 19... Bh6 {[%clk 0:00:41.6]} 20. Rf3 {[%clk 0:00:28.1]} 20... Nxd4
{[%clk 0:00:40.1]} 21. cxd4 {[%clk 0:00:29]} 21... Bf5 {[%clk 0:00:40.4]} 22.
Ra3 {[%clk 0:00:25.9]} 22... Rxa3 {[%clk 0:00:39.5]} 23. bxa3 {[%clk 0:00:27.7]}
23... Ra8 {[%clk 0:00:30.3]} 24. Nc2 {[%clk 0:00:26.6]} 24... Bxc2+ {[%clk
0:00:30.3]} 25. Kxc2 {[%clk 0:00:27.4]} 25... Bxd2 {[%clk 0:00:30.7]} 26. Kxd2
{[%clk 0:00:28.1]} 26... Rxa3 {[%clk 0:00:32.3]} 27. Kc2 {[%clk 0:00:25.2]}
27... Ke6 {[%clk 0:00:31.7]} 28. Re1+ {[%clk 0:00:23.9]} 28... Kd5 {[%clk
0:00:30.2]} 29. Kb2 {[%clk 0:00:25.2]} 29... Rf3 {[%clk 0:00:30.7]} 30. Re7
{[%clk 0:00:24]} 30... b4 {[%clk 0:00:20.8]} 31. Rd7+ {[%clk 0:00:23.3]} 31...
Ke4 {[%clk 0:00:21.5]} 32. Rc7 {[%clk 0:00:20.8]} 32... Rxf2+ {[%clk 0:00:21.7]}
33. Kb1 {[%clk 0:00:20.9]} 33... b5 {[%clk 0:00:21.8]} 34. d5 {[%clk 0:00:21.2]}
34... Kxd5 {[%clk 0:00:22.5]} 35. Rd7+ {[%clk 0:00:19.6]} 35... Kc5 {[%clk
0:00:22.4]} 36. h4 {[%clk 0:00:19.1]} 36... h5 {[%clk 0:00:21.8]} 37. Rg7 {[%clk
0:00:19.3]} 37... c3 {[%clk 0:00:19.9]} 38. Rxg6 {[%clk 0:00:19.7]} 38... b3
{[%clk 0:00:20.7]} 39. axb3 {[%clk 0:00:20.3]} 39... Kb4 {[%clk 0:00:22.1]} 40.
Kc1 {[%clk 0:00:12.3]} 40... Kxb3 {[%clk 0:00:23]} 41. Kd1 {[%clk 0:00:13.5]}
41... c2+ {[%clk 0:00:21.7]} 42. Kc1 {[%clk 0:00:14.6]} 42... Rf1+ {[%clk
0:00:22.4]} 0-1

[Event "*** Titled Tuesday Blitz"]
[Site "Chess.com"]
[Date "2019.02.05"]
[Round "1"]
[White "Chess2019Player"]
[Black "IakovUlivar"]
[Result "0-1"]
[WhiteElo "2033"]
[BlackElo "2497"]
[TimeControl "180+2"]
[EndTime "13:08:58 PST"]
[Termination "IakovUlivar won on time"]

1. e4 {[%clk 0:02:59.6]} 1... g6 {[%clk 0:02:58.6]} 2. d4 {[%clk 0:02:59.5]}
2... Bg7 {[%clk 0:02:59.6]} 3. Nc3 {[%clk 0:02:56.7]} 3... c6 {[%clk 0:03:00.3]}
4. Be3 {[%clk 0:02:40.4]} 4... d5 {[%clk 0:02:56.2]} 5. e5 {[%clk 0:02:41]} 5...
Nh6 {[%clk 0:02:47.8]} 6. Qd2 {[%clk 0:02:30.9]} 6... Nf5 {[%clk 0:02:42]} 7.
Bf4 {[%clk 0:02:31.3]} 7... h5 {[%clk 0:02:31.6]} 8. Nf3 {[%clk 0:02:14.5]} 8...
Be6 {[%clk 0:01:59.9]} 9. h3 {[%clk 0:02:00.4]} 9... Nd7 {[%clk 0:01:53]} 10.
Ng5 {[%clk 0:01:54]} 10... Nf8 {[%clk 0:01:52.5]} 11. Rg1 {[%clk 0:01:42.9]}
11... Qd7 {[%clk 0:01:34.2]} 12. O-O-O {[%clk 0:01:31.9]} 12... b5 {[%clk
0:01:21.6]} 13. Kb1 {[%clk 0:01:03.4]} 13... a5 {[%clk 0:01:18.5]} 14. Be2
{[%clk 0:00:42.9]} 14... f6 {[%clk 0:01:09.6]} 15. Nxe6 {[%clk 0:00:34.7]} 15...
Nxe6 {[%clk 0:01:10.1]} 16. g4 {[%clk 0:00:25.8]} 16... Nfxd4 {[%clk 0:00:35.1]}
17. gxh5 {[%clk 0:00:18.9]} 17... Nxe2 {[%clk 0:00:34.9]} 18. Nxe2 {[%clk
0:00:20.8]} 18... gxh5 {[%clk 0:00:31.1]} 19. exf6 {[%clk 0:00:18.9]} 19... Bxf6
{[%clk 0:00:31.2]} 20. Ng3 {[%clk 0:00:13.5]} 20... Nxf4 {[%clk 0:00:23.6]} 21.
Qxf4 {[%clk 0:00:15.4]} 21... O-O-O {[%clk 0:00:24]} 22. Nf5 {[%clk 0:00:14.2]}
22... e5 {[%clk 0:00:23]} 23. Qf3 {[%clk 0:00:14.5]} 23... e4 {[%clk 0:00:23.3]}
24. Qf4 {[%clk 0:00:15.4]} 24... Rhf8 {[%clk 0:00:23.3]} 25. Ne3 {[%clk
0:00:06.2]} 25... Bxb2 {[%clk 0:00:19.6]} 26. Qh6 {[%clk 0:00:06.6]} 26... Bc3
{[%clk 0:00:17.4]} 27. Rg6 {[%clk 0:00:06.3]} 27... Kb7 {[%clk 0:00:16.4]} 28.
Rdg1 {[%clk 0:00:05.4]} 28... Qe7 {[%clk 0:00:16.5]} 29. Rg7 {[%clk 0:00:05.7]}
29... Bxg7 {[%clk 0:00:17.1]} 30. Rxg7 {[%clk 0:00:07.6]} 30... Rf7 {[%clk
0:00:18.2]} 31. Nf5 {[%clk 0:00:08.1]} 31... Qb4+ {[%clk 0:00:17.4]} 32. Kc1
{[%clk 0:00:08.4]} 32... Qe1+ {[%clk 0:00:17.9]} 33. Kb2 {[%clk 0:00:08.3]}
33... Qb4+ {[%clk 0:00:19.8]} 34. Kc1 {[%clk 0:00:08.9]} 34... Rxg7 {[%clk
0:00:18.9]} 35. Qxg7+ {[%clk 0:00:10.8]} 35... Kb6 {[%clk 0:00:20]} 36. Qf6
{[%clk 0:00:06.3]} 36... Qe1+ {[%clk 0:00:20.4]} 37. Kb2 {[%clk 0:00:05.7]}
37... Qb4+ {[%clk 0:00:22.3]} 38. Kc1 {[%clk 0:00:06.5]} 38... Rf8 {[%clk
0:00:24.2]} 39. Qe5 {[%clk 0:00:05.7]} 39... Qe1+ {[%clk 0:00:24.5]} 40. Kb2
{[%clk 0:00:06.8]} 40... Qb4+ {[%clk 0:00:26.4]} 41. Kc1 {[%clk 0:00:07.9]}
41... Qe1+ {[%clk 0:00:22.8]} 42. Kb2 {[%clk 0:00:08.7]} 42... Qxf2 {[%clk
0:00:23.8]} 43. Nd4 {[%clk 0:00:03.9]} 43... Qf6 {[%clk 0:00:24.4]} 0-1

[Event "*** Titled Tuesday Blitz"]
[Site "Chess.com"]
[Date "2019.02.05"]
[Round "1"]
[White "Morshynska"]
[Black "Al_Shima"]
[Result "0-1"]
[WhiteElo "2080"]
[BlackElo "2504"]
[TimeControl "180+2"]
[EndTime "13:09:19 PST"]
[Termination "Al_Shima won by resignation"]

1. d4 {[%clk 0:03:01.7]} 1... Nf6 {[%clk 0:02:59.7]} 2. c4 {[%clk 0:03:02.2]}
2... Nc6 {[%clk 0:03:00.1]} 3. d5 {[%clk 0:03:02]} 3... Ne5 {[%clk 0:03:00.7]}
4. Qd4 {[%clk 0:02:55.7]} 4... d6 {[%clk 0:02:58]} 5. f4 {[%clk 0:02:50.8]} 5...
c5 {[%clk 0:02:52.3]} 6. Qc3 {[%clk 0:02:41.1]} 6... Ne4 {[%clk 0:02:51.1]} 7.
Qe3 {[%clk 0:02:24]} 7... Qa5+ {[%clk 0:02:37.3]} 8. Nd2 {[%clk 0:02:00.1]} 8...
Nxd2 {[%clk 0:02:23.8]} 9. Bxd2 {[%clk 0:02:02]} 9... Nxc4 {[%clk 0:02:24.2]}
10. Qd3 {[%clk 0:01:39.5]} 10... Nxd2 {[%clk 0:02:13.5]} 11. Qxd2 {[%clk
0:01:41.4]} 11... Qxd2+ {[%clk 0:02:13.8]} 12. Kxd2 {[%clk 0:01:43.3]} 12... e6
{[%clk 0:02:09.2]} 13. e4 {[%clk 0:01:35.2]} 13... a6 {[%clk 0:02:05.3]} 14. a4
{[%clk 0:01:31.9]} 14... exd5 {[%clk 0:02:05.5]} 15. exd5 {[%clk 0:01:32.8]}
15... Bf5 {[%clk 0:02:06.1]} 16. Nf3 {[%clk 0:01:30.6]} 16... Be7 {[%clk
0:01:54.7]} 17. Bc4 {[%clk 0:01:27.3]} 17... b6 {[%clk 0:01:48.2]} 18. Rae1
{[%clk 0:01:18.2]} 18... Kd7 {[%clk 0:01:48.3]} 19. h3 {[%clk 0:01:06.2]} 19...
h5 {[%clk 0:01:48.1]} 20. Ng5 {[%clk 0:00:57.1]} 20... Rhf8 {[%clk 0:01:33.8]}
21. Rhg1 {[%clk 0:00:40.1]} 21... h4 {[%clk 0:01:33.2]} 22. Re3 {[%clk
0:00:21.4]} 22... Bf6 {[%clk 0:01:32.8]} 23. b3 {[%clk 0:00:21.8]} 23... Bd4
{[%clk 0:01:32.6]} 24. Rge1 {[%clk 0:00:21.4]} 24... Bxe3+ {[%clk 0:01:33]} 25.
Rxe3 {[%clk 0:00:23.3]} 25... Bg6 {[%clk 0:01:25.8]} 26. Nf3 {[%clk 0:00:21.3]}
26... Rh8 {[%clk 0:01:23.3]} 27. Re1 {[%clk 0:00:20]} 27... f6 {[%clk
0:01:15.7]} 28. Rf1 {[%clk 0:00:19.6]} 28... Be4 {[%clk 0:01:15.2]} 29. Ke3
{[%clk 0:00:16.5]} 29... Bxf3 {[%clk 0:01:13.3]} 30. Kxf3 {[%clk 0:00:18.4]}
30... f5 {[%clk 0:01:07.8]} 31. Rd1 {[%clk 0:00:16.7]} 31... Rhb8 {[%clk
0:01:05.5]} 32. Bd3 {[%clk 0:00:17.2]} 32... g6 {[%clk 0:01:05.7]} 33. Re1
{[%clk 0:00:16.6]} 33... b5 {[%clk 0:00:56.5]} 34. a5 {[%clk 0:00:15.8]} 34...
Re8 {[%clk 0:00:55.8]} 35. Rg1 {[%clk 0:00:16.1]} 35... Re7 {[%clk 0:00:54.9]}
36. g4 {[%clk 0:00:13.5]} 36... Rae8 {[%clk 0:00:54.6]} 37. Bf1 {[%clk
0:00:10.4]} 37... Re3+ {[%clk 0:00:53.8]} 38. Kf2 {[%clk 0:00:11.5]} 38... fxg4
{[%clk 0:00:36.4]} 39. Rxg4 {[%clk 0:00:13.4]} 39... Rxb3 {[%clk 0:00:23.3]} 40.
Rxg6 {[%clk 0:00:13.3]} 40... Ree3 {[%clk 0:00:18.8]} 41. Rg7+ {[%clk
0:00:11.6]} 41... Kc8 {[%clk 0:00:17.9]} 42. Rh7 {[%clk 0:00:10.5]} 42... Rf3+
{[%clk 0:00:18.4]} 43. Kg2 {[%clk 0:00:10.6]} 43... Rxf4 {[%clk 0:00:19.5]} 44.
Rh8+ {[%clk 0:00:10]} 44... Kd7 {[%clk 0:00:20]} 45. Rh7+ {[%clk 0:00:11.9]}
45... Ke8 {[%clk 0:00:21.2]} 46. Ra7 {[%clk 0:00:12.3]} 46... Rb2+ {[%clk
0:00:22]} 47. Kg1 {[%clk 0:00:10.5]} 47... Rb1 {[%clk 0:00:23]} 48. Ra8+ {[%clk
0:00:11.5]} 48... Ke7 {[%clk 0:00:23.7]} 0-1

[Event "*** Titled Tuesday Blitz"]
[Site "Chess.com"]
[Date "2019.02.05"]
[Round "1"]
[White "DenisQ"]
[Black "wadsy27"]
[Result "1-0"]
[WhiteElo "2673"]
[BlackElo "2301"]
[TimeControl "180+2"]
[EndTime "13:09:26 PST"]
[Termination "DenisQ won by resignation"]

1. Nf3 {[%clk 0:03:01.3]} 1... d5 {[%clk 0:02:58.1]} 2. g3 {[%clk 0:03:02.4]}
2... Nf6 {[%clk 0:02:58.9]} 3. Bg2 {[%clk 0:03:04]} 3... c6 {[%clk 0:03:00]} 4.
O-O {[%clk 0:03:05.5]} 4... Bg4 {[%clk 0:03:00.9]} 5. d3 {[%clk 0:03:05.8]} 5...
Nbd7 {[%clk 0:03:01.7]} 6. Nbd2 {[%clk 0:03:06.9]} 6... e6 {[%clk 0:02:58.3]} 7.
h3 {[%clk 0:03:07.7]} 7... Bh5 {[%clk 0:02:58.7]} 8. c4 {[%clk 0:03:07]} 8...
Be7 {[%clk 0:02:59]} 9. b3 {[%clk 0:03:04.2]} 9... a5 {[%clk 0:02:58.7]} 10. a3
{[%clk 0:03:04.5]} 10... O-O {[%clk 0:02:58.4]} 11. Bb2 {[%clk 0:03:04.3]} 11...
b5 {[%clk 0:02:49.8]} 12. Qc2 {[%clk 0:03:00.5]} 12... Qb6 {[%clk 0:02:45.1]}
13. Bd4 {[%clk 0:02:57]} 13... Qb7 {[%clk 0:02:42.9]} 14. cxb5 {[%clk
0:02:53.3]} 14... cxb5 {[%clk 0:02:42.6]} 15. Rfc1 {[%clk 0:02:53.2]} 15... Rfc8
{[%clk 0:02:41.7]} 16. Qb2 {[%clk 0:02:53.9]} 16... Ne8 {[%clk 0:02:26.6]} 17.
b4 {[%clk 0:02:30.2]} 17... a4 {[%clk 0:02:17.7]} 18. g4 {[%clk 0:02:22.7]}
18... Bg6 {[%clk 0:02:15.2]} 19. Ne5 {[%clk 0:02:17.1]} 19... Nxe5 {[%clk
0:02:12.3]} 20. Bxe5 {[%clk 0:02:19]} 20... Bf6 {[%clk 0:02:13]} 21. Nf3 {[%clk
0:02:18]} 21... Bxe5 {[%clk 0:02:00.9]} 22. Nxe5 {[%clk 0:02:18]} 22... Nd6
{[%clk 0:02:02.1]} 23. Rc5 {[%clk 0:02:16.5]} 23... f6 {[%clk 0:01:57.4]} 24.
Nxg6 {[%clk 0:02:16.8]} 24... hxg6 {[%clk 0:01:58.6]} 25. Rac1 {[%clk
0:02:17.7]} 25... Qd7 {[%clk 0:01:55.1]} 26. f4 {[%clk 0:02:07.8]} 26... Nb7
{[%clk 0:01:50.6]} 27. R5c2 {[%clk 0:02:04.7]} 27... Nd6 {[%clk 0:01:38.5]} 28.
g5 {[%clk 0:01:57.5]} 28... Kf7 {[%clk 0:01:31.7]} 29. Qd4 {[%clk 0:01:52.4]}
29... Rxc2 {[%clk 0:01:30.7]} 30. Rxc2 {[%clk 0:01:52.4]} 30... Rc8 {[%clk
0:01:31.5]} 31. Rc5 {[%clk 0:01:42]} 31... Nb7 {[%clk 0:01:30.8]} 32. Rxc8
{[%clk 0:01:42.3]} 32... Qxc8 {[%clk 0:01:31.5]} 33. Bf3 {[%clk 0:01:13.6]}
33... Nd6 {[%clk 0:01:25.7]} 34. Kg2 {[%clk 0:01:12.4]} 34... Nf5 {[%clk
0:01:16.6]} 35. Qa7+ {[%clk 0:01:07.5]} 35... Kg8 {[%clk 0:01:13.8]} 36. Qb6
{[%clk 0:01:03.6]} 36... Qd7 {[%clk 0:01:00.5]} 37. Bg4 {[%clk 0:00:58.1]} 37...
d4 {[%clk 0:00:52.5]} 38. Bxf5 {[%clk 0:00:58.3]} 38... gxf5 {[%clk 0:00:51.1]}
39. Qc5 {[%clk 0:00:49]} 39... fxg5 {[%clk 0:00:43.4]} 40. fxg5 {[%clk
0:00:43.7]} 40... Kf7 {[%clk 0:00:38.6]} 41. h4 {[%clk 0:00:43.3]} 41... Kg6
{[%clk 0:00:21.6]} 42. Kg3 {[%clk 0:00:43.1]} 42... Kh5 {[%clk 0:00:20.9]} 43.
Qe5 {[%clk 0:00:42.9]} 43... Qf7 {[%clk 0:00:16]} 44. Qxd4 {[%clk 0:00:41.2]}
44... Qc7+ {[%clk 0:00:12.6]} 45. Qf4 {[%clk 0:00:26.1]} 45... Qxf4+ {[%clk
0:00:11.1]} 46. Kxf4 {[%clk 0:00:26.7]} 46... Kxh4 {[%clk 0:00:12.7]} 47. g6
{[%clk 0:00:25.5]} 47... Kh5 {[%clk 0:00:12.6]} 48. Ke5 {[%clk 0:00:26.8]} 48...
Kxg6 {[%clk 0:00:12.3]} 49. Kxe6 {[%clk 0:00:28.4]} 49... Kh5 {[%clk 0:00:11.6]}
50. d4 {[%clk 0:00:30]} 50... g5 {[%clk 0:00:13.2]} 51. d5 {[%clk 0:00:31.6]}
51... g4 {[%clk 0:00:14.9]} 52. d6 {[%clk 0:00:33.5]} 52... g3 {[%clk
0:00:16.5]} 53. d7 {[%clk 0:00:35.4]} 53... g2 {[%clk 0:00:17.2]} 54. d8=Q
{[%clk 0:00:37.3]} 54... g1=Q {[%clk 0:00:18.5]} 55. Qh8+ {[%clk 0:00:38.1]} 1-0